bitfinex/quotes_ETHUSD_20250813
["timestamp","ask_amount","ask_price","bid_price","bid_amount"]
[1755077897805,0.002,4649.1,4647.7,2.15158671]
[1755077898009,0.002,4649.1,4647.8,3.404]
[1755077898644,0.002,4649.1,4647.9,0.4444]
[1755077898821,0.002,4649.1,4648.0,3.405]
[1755077899259,0.002,4649.1,4648.1,4.3004]
[1755077899593,0.002,4649.1,4648.1,1.3004]
[1755077899891,0.002,4649.1,4648.3,2.15131858]
[1755077900095,0.002,4649.1,4648.4,2.15126638]
[1755077900282,0.002,4649.1,4648.2,0.4444]
[1755077901605,0.002,4649.1,4648.3,3.436]
[1755077901772,0.002,4649.1,4648.3,3.7796]
[1755077902158,0.002,4649.1,4648.3,3.436]
[1755077902558,0.552,4649.1,4648.3,3.436]
[1755077904609,0.55,4648.9,4647.5,5.161]
[1755077905821,0.55,4648.9,4647.6,3.429]
[1755077906177,0.55,4648.7,4647.6,3.429]
[1755077906422,0.55,4648.5,4647.5,5.161]
[1755077907075,0.9846,4648.5,4647.5,5.161]
[1755077907510,0.9846,4648.5,4647.6,3.426]
[1755077907734,0.9846,4648.5,4647.5,5.161]
[1755077908210,0.19825754,4648.4,4647.5,5.161]
[1755077908406,0.41469929,4648.3,4647.5,5.161]
[1755077908594,0.19825754,4648.2,4647.5,5.161]
[1755077908905,0.19825754,4648.1,4647.5,5.161]
[1755077909108,0.19825754,4648.0,4647.6,3.426]
[1755077909312,0.19825754,4647.9,4647.5,5.161]
[1755077909619,0.21644175,4648.3,4647.6,5.157]
[1755077909620,0.19825754,4647.8,4647.6,5.157]
[1755077909906,0.21644175,4648.3,4647.7,5.157]
[1755077910107,0.31831498,4648.2,4647.8,5.157]
[1755077910310,0.31831498,4648.2,4647.9,5.157]
[1755077910311,0.1982108,4648.1,4647.9,5.157]
[1755077910513,0.1982108,4648.0,4646.8,0.4444]
[1755077910713,0.1982108,4647.9,4646.8,0.4444]
[1755077911030,0.1982108,4647.9,4645.6,3.0]
[1755077911031,0.6642108,4647.8,4646.0,0.4425]
[1755077911201,0.34914188,4647.7,4646.1,3.421]
[1755077911393,0.1982108,4647.6,4646.1,3.421]
[1755077911613,0.55,4647.4,4646.1,3.421]
[1755077911813,0.1982108,4647.3,4646.1,3.421]
[1755077912117,0.1982108,4647.2,4646.1,3.421]
[1755077912282,0.1982108,4647.1,4646.1,3.421]
[1755077912487,0.55,4647.4,4646.1,3.421]
[1755077912488,0.1982108,4647.0,4646.1,3.421]
[1755077912689,0.1982108,4646.9,4646.1,3.421]
[1755077912983,0.1982108,4646.8,4646.1,3.421]
[1755077913189,0.1982108,4646.7,4645.8,0.4425]
[1755077913383,0.1982108,4646.6,4645.8,0.4425]
[1755077913717,0.1982108,4646.5,4645.4,2.59515351]
[1755077913915,0.1982108,4646.4,4645.4,0.4425]
[1755077914263,0.55,4646.9,4645.4,0.4425]
[1755077914384,0.1982108,4647.0,4643.0,2.15375148]
[1755077914385,0.55,4647.0,4643.0,2.15375148]
[1755077914588,0.55,4646.8,4644.6,2.15302921]
[1755077914800,0.55,4646.6,4644.7,6.01247357]
[1755077915123,0.55,4646.4,4644.9,2.1528889]
[1755077915420,0.198404,4646.3,4645.0,5.5995]
[1755077915723,0.198404,4646.2,4645.0,5.5995]
[1755077915888,0.55,4646.4,4645.0,5.5995]
[1755077915889,0.198404,4646.3,4645.0,5.5995]
[1755077916089,0.198404,4646.2,4645.0,0.4425]
[1755077916422,0.466,4647.7,4645.1,9.4079]
[1755077916587,0.19847668,4647.6,4646.1,2.15230679]
[1755077916916,0.19847668,4647.5,4646.2,3.8665]
[1755077917120,0.466,4647.7,4646.3,2.15224933]
[1755077917121,0.19844392,4647.4,4646.3,2.15224933]
[1755077917307,0.19844392,4647.3,4646.2,6.01878927]
[1755077917512,0.19844392,4647.2,4646.2,3.8665]
[1755077917707,0.19844392,4647.1,4646.3,0.4425]
[1755077917914,0.19844392,4647.0,4646.2,3.424]
[1755077918132,0.19844392,4646.9,4646.2,3.424]
[1755077918329,0.19844392,4646.8,4646.2,3.424]
[1755077918534,0.19844392,4646.8,4646.3,0.4425]
[1755077918718,0.19844392,4646.8,4646.4,0.4425]
[1755077918917,0.19844392,4646.8,4646.5,0.4425]
[1755077919213,0.19862126,4646.7,4646.6,0.4425]
[1755077919841,0.19862126,4646.7,4646.2,3.424]
[1755077920040,0.19862126,4646.6,4646.3,0.4425]
[1755077920341,0.19862126,4646.5,4646.2,3.424]
[1755077920539,0.19862126,4646.4,4646.3,3.42]
[1755077920717,0.19862126,4646.4,4644.5,2.15306049]
[1755077920922,0.19862126,4646.3,4645.4,2.15266401]
[1755077921118,0.19862126,4646.2,4645.4,2.15266401]
[1755077921323,0.19862126,4646.1,4645.5,0.4425]
[1755077921523,0.19862126,4646.0,4645.5,0.4425]
[1755077921718,0.19862126,4645.9,4645.1,5.703935]
[1755077921934,0.55,4646.7,4645.6,0.4425]
[1755077922136,0.55,4646.5,4645.7,3.417]
[1755077922445,0.19862126,4646.4,4645.7,3.417]
[1755077922608,0.19862126,4646.3,4645.7,3.417]
[1755077922811,0.19862126,4646.2,4645.7,3.417]
[1755077923010,0.19862126,4646.1,4645.7,3.417]
[1755077923208,0.19862126,4646.0,4645.7,3.417]
[1755077923439,0.19862126,4645.9,4645.7,3.8595]
[1755077923638,0.55,4646.5,4645.7,3.8595]
[1755077923639,0.19862126,4646.4,4645.7,3.8595]
[1755077924041,0.19964751,4646.3,4645.7,3.8595]
[1755077924257,0.19964751,4646.2,4645.7,3.417]
[1755077924443,0.19964751,4646.1,4645.7,3.417]
[1755077924644,0.19993309,4646.0,4645.7,3.417]
[1755077924850,0.19993309,4645.9,4645.7,3.417]
[1755077925145,0.19993309,4645.8,4645.3,0.4425]
[1755077925346,0.55,4646.5,4645.1,5.157]
[1755077925347,0.19993309,4645.7,4645.1,5.157]
[1755077925645,0.19993309,4645.6,4645.4,0.4425]
[1755077925846,0.19993309,4645.5,4645.1,5.157]
[1755077926016,0.55,4646.3,4645.1,5.157]
[1755077926213,0.55,4646.5,4645.1,5.157]
[1755077926542,0.55,4646.5,4645.2,3.411]
[1755077926543,0.55,4646.3,4645.2,3.411]
[1755077926718,0.20026815,4646.2,4645.2,3.411]
[1755077926921,0.20026815,4646.1,4645.2,3.411]
[1755077927235,0.20024871,4646.0,4645.2,3.411]
[1755077927437,0.20024871,4645.9,4645.2,3.411]
[1755077927623,0.20024871,4645.8,4645.2,3.411]
[1755077927821,0.20024871,4646.2,4645.2,3.8535]
[1755077928118,0.20024871,4646.1,4645.2,3.8535]
[1755077928321,0.2002202,4646.0,4645.3,0.4425]
[1755077928535,0.2002202,4645.9,4645.3,0.4425]
[1755077928827,0.55,4646.3,4645.2,3.411]
[1755077928828,0.2002202,4645.8,4645.2,3.411]
[1755077929143,0.55,4646.1,4645.2,3.411]
[1755077929324,0.2002202,4646.0,4645.2,3.411]
[1755077929650,0.2002202,4645.9,4645.2,3.411]
[1755077929854,0.2002202,4645.8,4645.2,3.411]
[1755077930020,0.2002202,4645.7,4645.2,3.411]
[1755077930223,0.2002202,4645.6,4645.2,3.411]
[1755077930422,0.2002202,4646.0,4645.2,3.411]
[1755077930617,0.2002202,4645.9,4645.3,0.4425]
[1755077930822,0.2002202,4645.8,4645.3,0.4425]
[1755077931037,0.2002202,4645.7,4645.3,0.4425]
[1755077931235,0.2002202,4645.6,4645.3,0.4425]
[1755077931432,0.2002202,4645.5,4645.3,0.4425]
[1755077931635,0.2002202,4646.0,4645.3,0.4425]
[1755077931835,0.2002202,4645.9,4645.3,0.4425]
[1755077932045,0.2002202,4645.8,4645.3,0.4425]
[1755077932249,0.2002202,4645.7,4645.3,0.4425]
[1755077932552,0.2002202,4645.6,4645.3,0.4425]
[1755077932767,0.2002202,4645.5,4645.3,0.4425]
[1755077932971,0.2002202,4645.4,4645.3,0.4425]
[1755077933324,0.20054496,4645.4,4645.3,0.4425]
[1755077933953,0.20054296,4645.4,4645.3,0.4425]
[1755077934150,0.20054296,4646.2,4645.3,0.4425]
[1755077934449,0.20054296,4646.1,4645.3,0.4425]
[1755077934648,0.20054296,4646.0,4645.2,3.411]
[1755077934854,0.20054296,4645.9,4645.2,3.411]
[1755077935053,0.20054296,4645.8,4645.2,3.411]
[1755077935256,0.20054296,4645.7,4645.2,3.411]
[1755077935454,0.20054296,4645.6,4645.2,3.411]
[1755077935775,0.20054296,4645.5,4645.3,0.4425]
[1755077935927,0.20054296,4645.4,4645.3,0.4425]
[1755077937263,0.57679506,4647.3,4645.4,2.15266715]
[1755077937464,0.20078772,4646.8,4646.1,2.15231662]
[1755077937765,0.20078772,4646.8,4645.3,4.3301617]
[1755077937766,0.20078772,4646.7,4646.2,5.99178411]
[1755077938060,0.20078772,4646.6,4646.3,0.4425]
[1755077938263,0.20078772,4646.5,4646.4,0.4425]
[1755077939448,0.20078772,4646.5,4646.4,3.98788777]
[1755077939647,0.7909,4648.2,4646.8,2.15201859]
[1755077939849,0.20287211,4646.9,4646.8,3.396]
[1755077940351,0.20287211,4646.9,4646.8,3.395]
[1755077940556,0.20287211,4646.9,4646.1,2.15233857]
[1755077940759,0.20287211,4646.9,4645.8,1.2376]
[1755077940760,0.20087211,4646.8,4645.8,0.4436]
[1755077941079,0.20087211,4646.7,4645.9,3.0]
[1755077941382,0.20087211,4646.6,4646.0,2.59597284]
[1755077941541,0.002,4646.9,4645.8,0.25961233]
[1755077941730,0.20101116,4646.8,4646.0,3.0]
[1755077941935,0.002,4646.9,4646.1,0.4436]
[1755077942168,0.20094207,4646.8,4646.6,2.15210092]
[1755077942375,0.002,4646.9,4646.7,3.396]
[1755077942665,0.002,4646.9,4646.1,0.4436]
[1755077942666,0.002,4646.9,4646.8,3.396]
[1755077942867,0.20289655,4646.9,4646.8,3.396]
[1755077943069,1.45859655,4646.9,4645.6,2.15253053]
[1755077943272,0.34675621,4646.8,4645.8,2.1524782]
[1755077943472,0.20089655,4646.7,4645.9,3.396]
[1755077943639,0.20089655,4646.6,4645.9,3.396]
[1755077943964,0.2009149,4646.5,4645.9,5.99202424]
[1755077944142,0.2009149,4646.4,4645.9,5.99202424]
[1755077944343,0.002,4646.9,4646.0,1.2376]
[1755077944344,0.2009149,4646.3,4646.0,1.2376]
[1755077944541,0.002,4646.9,4645.9,3.396]
[1755077944542,0.002,4646.9,4646.3,2.15223844]
[1755077944739,0.2008828,4646.8,4646.4,3.394]
[1755077944975,0.2008828,4646.7,4646.5,0.4436]
[1755077945138,0.2008828,4646.6,4646.4,3.394]
[1755077945344,0.2008828,4646.5,4645.8,2.682]
[1755077945574,0.2008828,4646.4,4645.9,3.394]
[1755077945740,0.2008828,4646.3,4645.8,2.682]
[1755077945940,0.2008828,4646.2,4645.9,3.8386]
[1755077946248,0.2008828,4646.1,4645.9,3.8386]
[1755077946450,0.002,4646.9,4645.9,3.8386]
[1755077946638,0.20088533,4646.8,4645.8,2.682]
[1755077946841,0.20088533,4646.7,4645.9,4.6306]
[1755077947040,0.002,4646.9,4645.9,4.6306]
[1755077947041,0.002,4646.9,4646.5,2.15212324]
[1755077947374,0.20085812,4646.8,4646.6,3.393]
[1755077947580,0.002,4646.9,4646.7,3.393]
[1755077947747,0.002,4646.9,4646.8,3.393]
[1755077947943,0.20283287,4646.9,4646.8,3.393]
[1755077949358,0.002,4646.9,4646.8,8.55]
[1755077949555,1.10093287,4646.9,4646.8,8.549]
[1755077949745,0.46660616,4646.9,4646.8,8.549]
[1755077949946,1.10093287,4646.9,4646.8,5.157]
[1755077950789,0.31002422,4646.9,4646.8,5.157]
[1755077950945,0.31002422,4646.9,4646.0,0.4436]
[1755077951276,0.108,4646.2,4646.1,3.39]
[1755077951805,0.108,4646.2,4646.1,3.8336]
[1755077951991,0.108,4646.7,4646.1,5.11896]
[1755077952284,0.108,4646.7,4646.3,2.15224503]
[1755077952459,0.108,4646.7,4646.4,2.15218693]
[1755077952779,0.108,4646.7,4646.1,6.82770118]
[1755077952780,0.108,4646.7,4646.5,3.8326]
[1755077953153,0.108,4646.7,4646.6,0.4436]
[1755077954141,0.002,4646.9,4646.6,0.4436]
[1755077954348,0.002,4646.9,4646.7,0.4436]
[1755077954574,0.002,4646.9,4646.8,2.15201859]
[1755077955083,0.002,4646.9,4646.8,2.59561859]
[1755077955287,0.002,4646.9,4646.8,0.4436]
[1755077955460,0.002,4646.9,4646.8,7.75261859]
[1755077955785,0.002,4646.9,4646.8,5.157]
[1755077955960,0.002,4646.9,4646.8,8.544]
[1755077956859,0.002,4646.9,4646.8,5.157]
[1755077957184,0.002,4646.9,4646.8,8.543]
[1755077957480,0.002,4646.9,4646.8,3.386]
[1755077957697,0.77747006,4648.9,4648.2,2.15137042]
[1755077957847,0.1072,4648.9,4647.9,2.15146605]
[1755077958053,0.1072,4648.9,4648.2,0.1072]
[1755077958445,0.1072,4648.9,4648.2,2.70217042]
[1755077958652,0.1072,4648.9,4648.2,3.49617042]
[1755077958846,0.1072,4648.9,4648.2,6.10017042]
[1755077959575,0.1072,4648.9,4648.2,2.25857042]
[1755077959808,1.0,4650.0,4648.1,2.15141449]
[1755077959809,1.2557,4649.0,4648.1,2.15141449]
[1755077959982,0.1072,4648.5,4648.0,2.15141906]
[1755077960186,0.1072,4648.5,4648.2,2.15137042]
[1755077960496,0.1072,4648.5,4648.2,3.397]
[1755077960992,1.0,4650.0,4648.3,3.0]
[1755077961193,1.0,4650.0,4649.3,0.1072]
[1755077961194,0.1072,4649.9,4649.3,0.1072]
[1755077961373,0.1072,4649.9,4649.4,8.563]
[1755077961573,0.1072,4649.9,4649.5,5.55676771]
[1755077961771,0.1072,4649.9,4649.5,3.406]
[1755077962206,0.1072,4649.9,4649.5,5.55676195]
[1755077962406,0.1072,4649.9,4649.5,3.406]
[1755077962622,0.8981,4649.9,4649.5,3.406]
[1755077962776,1.2557,4649.8,4649.6,3.404]
[1755077962978,0.1072,4649.5,4649.4,5.157]
[1755077964014,0.18981,4649.9,4649.4,5.157]
[1755077964205,0.1072,4649.7,4649.4,8.559]
[1755077964596,0.1072,4649.7,4649.5,0.4436]
[1755077964797,0.1072,4649.7,4649.6,2.15072264]
[1755077965118,1.0,4650.0,4649.9,2.15058388]
[1755077965302,1.0,4650.0,4649.9,3.402]
[1755077965635,1.0,4650.0,4649.9,6.79018388]
[1755077965790,1.0,4650.0,4649.9,6.89738388]
[1755077965992,1.0,4650.0,4649.9,8.07028089]
[1755077966292,0.19990715,4651.9,4650.2,0.55]
[1755077966487,0.1072,4652.4,4651.4,0.1072]
[1755077966686,0.1072,4652.4,4651.4,3.5272]
[1755077966925,0.7909,4653.4,4651.4,6.78491035]
[1755077967125,0.1072,4652.9,4651.4,6.78491035]
[1755077967294,0.19975785,4653.5,4651.5,0.55]
[1755077967611,0.1072,4653.7,4653.0,0.1072]
[1755077967813,0.1072,4653.7,4653.1,3.429]
[1755077968029,0.1072,4653.7,4653.2,3.431]
[1755077968190,0.19975785,4654.1,4653.5,0.1072]
[1755077968393,0.2495,4655.9,4653.6,4.1851]
[1755077968394,0.572,4655.4,4653.6,4.1851]
[1755077968596,0.1072,4655.4,4654.8,0.1072]
[1755077968791,0.10541911,4655.1,4654.9,3.451]
[1755077969091,0.2495,4655.9,4654.9,3.454]
[1755077969092,0.4648,4655.7,4654.9,3.454]
[1755077969530,0.4979,4655.0,4651.9,3.0]
[1755077969714,1.2844,4655.0,4653.2,0.7339]
[1755077970020,1.2844,4655.0,4650.5,0.27172508]
[1755077970021,1.2444,4654.9,4653.3,3.463]
[1755077970229,0.04,4655.0,4653.4,4.1979]
[1755077970392,0.04,4655.0,4653.5,3.464]
[1755077970598,0.04,4655.0,4654.9,2.14827386]
[1755077970799,0.04,4655.0,4654.9,5.83010125]
[1755077971004,1e-08,4655.0,4654.9,7.38965718]
[1755077971243,0.2495,4655.9,4655.4,0.55]
[1755077971450,0.2495,4655.9,4655.8,2.69785858]
[1755077971632,0.2495,4655.9,4655.8,4.32175858]
[1755077971940,0.2495,4655.9,4655.8,5.6619]
[1755077972241,0.2495,4655.9,4655.8,0.7339]
[1755077972442,0.2495,4655.9,4655.8,4.2229]
[1755077972750,0.2495,4655.9,4655.8,6.92075858]
[1755077972902,0.2495,4655.9,4655.8,8.36175858]
[1755077973100,0.2495,4655.9,4655.8,4.87175858]
[1755077973324,0.2495,4655.9,4655.8,8.36975858]
[1755077973747,0.2495,4655.9,4652.0,2.14958229]
[1755077973903,0.2495,4655.9,4654.1,4.2309]
[1755077974104,0.2495,4655.9,4654.2,3.497]
[1755077974305,0.4579,4655.8,4654.3,3.497]
[1755077974506,0.4579,4655.8,4654.4,3.497]
[1755077974738,0.4579,4655.8,4654.5,3.8497]
[1755077975037,0.4579,4655.8,4654.5,0.3497]
[1755077975336,0.4579,4655.8,4654.7,5.151]
[1755077975511,0.7865,4655.7,4654.7,5.151]
[1755077975705,0.4579,4655.6,4654.8,3.499]
[1755077975901,0.4579,4655.6,4654.9,3.499]
[1755077976105,0.4579,4655.6,4654.7,5.151]
[1755077976637,0.7865,4655.5,4654.7,5.151]
[1755077976804,0.4579,4655.4,4654.8,3.497]
[1755077977204,0.4579,4655.4,4654.9,3.495]
[1755077977465,0.4579,4655.4,4654.7,5.151]
[1755077978308,0.2495,4655.9,4654.7,5.151]
[1755077978511,0.7865,4658.2,4655.9,3.0]
[1755077978709,0.1072,4658.2,4657.2,5.15]
[1755077978909,0.1072,4658.2,4657.6,0.1072]
[1755077979417,0.4579,4658.1,4657.7,3.503]
[1755077979827,0.8937,4658.2,4657.7,3.503]
[1755077980049,0.4579,4658.0,4657.8,3.503]
[1755077980343,1.2444,4657.9,4657.2,5.15]
[1755077980512,0.23164,4657.8,4657.3,3.502]
[1755077980909,1.2444,4657.7,4657.2,5.15]
[1755077981110,0.4579,4657.6,4657.3,3.501]
[1755077981540,0.1072,4657.8,4657.2,5.15]
[1755077981746,0.1072,4657.8,4657.3,3.499]
[1755077982137,0.4579,4658.1,4657.3,3.499]
[1755077982320,0.12444,4658.0,4657.3,3.499]
[1755077982511,0.12444,4658.0,4657.4,3.497]
[1755077982852,0.4579,4657.9,4657.2,5.15]
[1755077983060,0.1072,4657.4,4657.2,5.15]
[1755077983261,0.1072,4657.4,4656.7,0.1072]
[1755077983262,0.1072,4657.4,4657.3,8.643]
[1755077983542,0.1072,4657.4,4657.3,5.148]
[1755077983839,1.3516,4657.4,4657.3,5.148]
[1755077984048,1.3516,4657.4,4656.2,0.1072]
[1755077984049,1.48676,4657.4,4656.2,0.1072]
[1755077984260,0.55,4657.2,4653.8,0.7339]
[1755077984418,0.1072,4655.8,4654.0,2.14865565]
[1755077984614,0.1072,4655.8,4655.0,0.1072]
[1755077984827,0.1072,4655.8,4655.1,3.496]
[1755077985416,0.1072,4655.8,4655.2,5.147]
[1755077986113,0.4579,4655.9,4655.2,5.147]
[1755077986343,0.1072,4655.4,4655.2,5.147]
[1755077986532,0.4579,4655.3,4655.2,5.147]
[1755077987135,1.2444,4655.3,4655.2,5.147]
[1755077987852,1.44145207,4655.3,4655.2,5.147]
[1755077988012,1.44150558,4655.3,4655.2,5.147]
[1755077988628,1.59637614,4655.3,4655.2,5.147]
[1755077988839,1.59637614,4655.3,4655.2,8.636]
[1755077989054,1.59637614,4655.3,4655.2,5.148]
[1755077989221,0.55,4655.2,4654.8,0.001]
[1755077989416,0.19710558,4655.1,4654.4,2.676]
[1755077989614,0.76463761,4655.0,4652.2,2.8834129]
[1755077989823,0.55,4654.8,4652.2,0.7339]
[1755077990037,0.21463761,4655.0,4652.2,0.7339]
[1755077990038,0.55,4654.6,4653.9,0.001]
[1755077990238,0.55,4654.4,4654.0,3.488]
[1755077990422,1.44219536,4654.3,4653.9,0.001]
[1755077990623,0.3970149,4654.2,4653.9,0.001]
[1755077990844,0.19779536,4654.1,4653.9,0.001]
[1755077991032,0.19779536,4654.0,4653.9,0.001]
[1755077991238,1.44219536,4654.0,4653.9,0.001]
[1755077991849,1.44219536,4654.0,4653.9,3.488]
[1755077992050,1.60633685,4654.0,4653.5,0.001]
[1755077992238,1.44219536,4653.9,4653.5,0.001]
[1755077992442,0.19779536,4653.8,4653.5,0.001]
[1755077992761,0.19779536,4653.7,4653.5,0.001]
[1755077992963,0.19779536,4653.6,4653.5,0.001]
[1755077993192,0.7999149,4653.6,4653.5,0.001]
[1755077993473,1.5864149,4653.6,4653.5,0.001]
[1755077993672,2.1364149,4653.6,4653.5,0.001]
[1755077993880,2.1364149,4653.6,4653.5,3.486]
[1755077994083,0.55,4653.5,4650.3,0.0014]
[1755077994293,0.55,4653.3,4650.9,2.15011577]
[1755077994577,4.12679506,4653.1,4650.5,0.7339]
[1755077994794,1.44219536,4653.0,4651.2,2.14993813]
[1755077995093,0.65569536,4652.9,4651.1,2.14999556]
[1755077995290,0.7865,4653.0,4650.5,0.7339]
[1755077995291,0.19779536,4652.8,4651.2,2.14997721]
[1755077995444,0.19779536,4652.7,4651.2,5.149]
[1755077995651,0.19779536,4652.6,4651.2,5.149]
[1755077995868,0.14421954,4652.7,4651.2,5.149]
[1755077995869,0.65569536,4652.5,4651.3,3.482]
[1755077996076,0.19779536,4652.4,4651.2,5.149]
[1755077996276,0.19779536,4652.3,4651.4,3.482]
[1755077996480,0.19906835,4652.2,4651.4,3.482]
[1755077996692,0.19906835,4652.1,4651.4,3.482]
[1755077996874,0.4579,4652.5,4651.4,3.482]
[1755077996875,0.19906835,4652.0,4651.4,3.482]
[1755077997056,0.1989994,4651.9,4651.2,5.149]
[1755077997263,0.1989994,4651.8,4651.2,5.149]
[1755077997458,0.1989994,4651.7,4651.2,5.149]
[1755077997663,0.4579,4652.5,4651.2,5.149]
[1755077997860,3.0,4653.3,4651.2,5.149]
[1755077997861,0.57679506,4653.8,4651.4,5.14989035]
[1755077998069,0.7865,4654.6,4651.4,5.14989035]
[1755077998070,0.4579,4654.9,4651.7,2.1497517]
[1755077998278,0.4579,4654.9,4653.2,2.14901789]
[1755077998579,0.7865,4654.8,4652.2,0.7339]
[1755077998778,0.7865,4654.8,4653.0,0.1072]
[1755077998779,0.1072,4653.7,4653.0,0.1072]
[1755077999081,0.1072,4653.7,4653.2,2.14901298]
[1755077999282,0.1072,4653.7,4653.3,5.15]
[1755077999783,0.4579,4654.7,4653.3,5.15]
[1755077999955,0.1072,4653.9,4653.3,5.15]
[1755078000151,0.19896191,4653.8,4653.3,5.15]
[1755078000380,0.19896191,4653.7,4653.3,5.15]
[1755078000683,0.19896191,4653.6,4653.3,5.15]
[1755078000887,0.19896191,4653.5,4653.3,5.15]
[1755078001060,1.55356191,4653.4,4652.4,0.1072]
[1755078001248,0.1072,4652.9,4652.5,5.15]
[1755078001450,0.19896191,4652.8,4652.6,5.15]
[1755078001653,0.1072,4652.9,4652.7,5.15]
[1755078001849,1.2474,4653.4,4652.2,2.14949914]
[1755078001850,0.19895447,4652.8,4652.2,2.14949914]
[1755078002060,1.2474,4653.4,4651.9,0.7057]
[1755078002061,0.19895447,4652.7,4652.0,2.14960801]
[1755078002283,0.19895447,4652.6,4652.0,0.2855308]
[1755078002456,0.19895447,4652.5,4651.7,2.1497517]
[1755078002658,0.19895447,4652.4,4650.9,0.7057]
[1755078002880,0.19895447,4652.3,4651.2,2.14993684]
[1755078003079,0.19895447,4652.2,4651.3,3.483]
[1755078003262,0.19895447,4652.1,4651.3,3.483]
[1755078003462,0.19895447,4652.0,4651.3,3.483]
[1755078003656,0.473,4652.5,4651.3,3.483]
[1755078003657,0.19895447,4651.9,4651.3,3.483]
[1755078003875,0.473,4652.5,4651.4,3.482]
[1755078003876,0.19895447,4651.8,4651.4,3.482]
[1755078004090,0.19895447,4651.7,4650.8,2.15016267]
[1755078004286,0.57679506,4653.5,4650.0,0.7057]
[1755078004287,0.19895447,4651.6,4650.0,0.7057]
[1755078004487,0.19895447,4651.5,4650.3,2.15035925]
[1755078004784,0.473,4651.9,4650.3,2.15035925]
[1755078004785,0.19895447,4651.4,4650.3,2.15035925]
[1755078004986,0.19895447,4651.4,4650.1,3.48]
[1755078005186,0.19890732,4651.3,4650.1,3.48]
[1755078005387,0.19890732,4651.2,4650.2,10.39701441]
[1755078005693,0.57679506,4652.8,4648.8,0.11205182]
[1755078005694,0.1988123,4651.1,4648.8,0.11205182]
[1755078005880,0.55,4650.9,4648.8,0.01205182]
[1755078006091,0.55,4650.9,4648.2,5.151]
[1755078006092,0.57679506,4649.9,4648.2,5.151]
[1755078006260,2.72769689,4649.3,4648.2,5.151]
[1755078006454,0.1988123,4649.2,4648.3,3.496]
[1755078006807,0.1988123,4649.1,4648.3,3.496]
[1755078007022,0.1988123,4649.0,4648.3,3.496]
[1755078007172,3.55,4648.7,4648.2,5.151]
[1755078007505,3.55,4648.7,4647.3,2.678]
[1755078007506,0.55,4648.3,4647.3,2.678]
[1755078007655,0.74826006,4648.2,4648.1,5.151]
[1755078007857,5.64061538,4648.2,4648.1,5.151]
[1755078008993,4.44566006,4648.2,4648.1,5.151]
[1755078009219,4.44566006,4648.2,4648.1,5.152]
[1755078009366,4.99566006,4648.2,4648.1,8.643]
[1755078009896,0.55,4648.1,4645.8,0.001]
[1755078010106,0.19826006,4648.0,4645.9,8.644]
[1755078010260,0.35052607,4647.9,4646.0,1.15032115]
[1755078010461,0.19826006,4647.8,4646.0,1.15032115]
[1755078010661,0.19826006,4647.7,4647.1,0.001]
[1755078010856,0.19826006,4647.6,4647.1,0.001]
[1755078011074,0.19826006,4647.5,4647.2,3.491]
[1755078011287,0.19826006,4647.4,4647.1,0.001]
[1755078011502,0.19826006,4647.3,4647.1,0.001]
[1755078011699,0.19826006,4647.2,4647.1,0.001]
[1755078012899,0.19826006,4647.2,4647.1,3.49]
[1755078013071,0.30546006,4647.2,4646.3,0.108]
[1755078013266,0.19826006,4647.1,4646.4,0.6984]
[1755078013470,0.19826006,4647.0,4646.4,0.6984]
[1755078013686,0.19826006,4646.9,4646.5,0.28520427]
[1755078013894,0.19826006,4646.8,4646.7,2.1520649]
[1755078014196,0.19766091,4646.8,4646.7,2.8518649]
[1755078014367,0.19766091,4646.8,4646.7,2.9598649]
[1755078014762,0.1072,4647.7,4646.7,4.2928]
[1755078014963,0.19765985,4647.6,4647.2,2.25900912]
[1755078015271,0.19765985,4647.5,4647.2,2.25900912]
[1755078015471,0.19765985,4647.4,4647.3,2.15178705]
[1755078015792,0.19765985,4647.4,4647.3,2.85018705]
[1755078015989,0.19765985,4647.4,4647.3,0.6984]
[1755078016162,0.19765985,4647.4,4647.3,3.483]
[1755078016359,0.19765985,4647.4,4647.3,6.33318705]
[1755078016761,0.19765985,4647.4,4647.3,7.08582576]
[1755078017210,0.1072,4648.7,4647.9,2.15146334]
[1755078017379,0.1072,4648.7,4648.0,8.641]
[1755078017380,0.19784067,4648.6,4648.0,8.641]
[1755078017557,0.1072,4648.7,4648.0,8.641]
[1755078017558,0.19784067,4648.5,4648.1,0.1072]
[1755078017763,0.19784067,4648.4,4648.1,2.25859852]
[1755078017961,0.19784067,4648.3,4648.1,0.1072]
[1755078018181,0.1072,4648.7,4648.1,2.2586167]
[1755078018182,0.19784067,4648.2,4648.1,2.2586167]
[1755078018583,0.19784067,4648.2,4648.1,0.1072]
[1755078018760,0.19784067,4648.2,4648.1,3.5892]
[1755078018960,0.19784067,4648.2,4646.7,3.3798]
[1755078019191,0.1072,4648.2,4648.1,5.155]
[1755078019391,0.19818239,4648.2,4648.1,8.637]
[1755078019558,0.19818239,4648.2,4648.1,5.155]
[1755078019791,1.44558239,4648.2,4646.9,0.38376004]
[1755078019991,1.44558239,4648.2,4646.5,0.6984]
[1755078019992,0.1072,4647.8,4647.1,0.1072]
[1755078020308,0.19818239,4647.7,4647.0,5.8534]
[1755078020598,0.473,4650.2,4647.2,0.55]
[1755078020814,0.473,4650.7,4649.5,2.15074943]
[1755078020976,0.443,4650.7,4650.0,2.15053763]